bitfinex/quotes_ETHUSD_20230105
["timestamp","ask_amount","ask_price","bid_price","bid_amount"]
[1672911953989,35.2614995,1248.6,1248.5,0.13695545]
[1672911954153,31.7614995,1248.6,1248.5,0.13695545]
[1672911958900,36.01705635,1248.6,1248.5,0.13695545]
[1672911959095,36.01705635,1248.6,1248.5,0.12325991]
[1672911959309,36.24705635,1248.6,1248.5,0.12325991]
[1672911961794,32.74705635,1248.6,1248.5,0.12325991]
[1672911963651,36.24705635,1248.6,1248.5,0.12325991]
[1672911963870,32.74705635,1248.6,1248.5,0.12325991]
[1672911966091,32.74705635,1248.6,1248.5,0.11093392]
[1672911967880,36.24705635,1248.6,1248.5,0.11093392]
[1672911968455,32.74705635,1248.6,1248.5,0.11093392]
[1672911968911,36.24705635,1248.6,1248.5,0.11093392]
[1672911970510,32.74705635,1248.6,1248.5,0.11093392]
[1672911970683,36.24705635,1248.6,1248.5,0.11093392]
[1672911971033,32.74705635,1248.6,1248.5,0.11093392]
[1672911971405,36.24705635,1248.6,1248.5,0.11093392]
[1672911972768,32.74705635,1248.6,1248.5,0.11093392]
[1672911972973,36.24705635,1248.6,1248.5,0.11093392]
[1672911973188,36.24705635,1248.6,1248.5,0.09984053]
[1672911974506,32.74705635,1248.6,1248.5,0.09984053]
[1672911974721,36.24705635,1248.6,1248.5,0.09984053]
[1672911975549,32.74705635,1248.6,1248.5,0.09984053]
[1672911978550,27.82291,1248.6,1248.5,0.09984053]
[1672911978753,32.74705635,1248.6,1248.5,0.09984053]
[1672911980032,32.74705635,1248.6,1248.5,0.08985648]
[1672911980240,36.24705635,1248.6,1248.5,0.08985648]
[1672911980496,32.74705635,1248.6,1248.5,0.08985648]
[1672911980703,36.24705635,1248.6,1248.5,0.08985648]
[1672911980874,32.74705635,1248.6,1248.5,0.08985648]
[1672911981294,36.24671647,1248.6,1248.5,0.08985648]
[1672911981512,46.22069525,1248.6,1248.5,0.08985648]
[1672911981718,49.82179525,1248.6,1248.4,0.14016507]
[1672911981986,13.73871832,1248.5,1248.4,0.14016507]
[1672911982187,37.83354832,1248.5,1248.4,0.09016507]
[1672911982431,44.32772221,1248.5,1248.4,0.09016507]
[1672911982716,58.64690635,1248.5,1248.4,5.07e-06]
[1672911982869,69.21010635,1248.5,1248.4,5.07e-06]
[1672911983500,69.21010635,1248.5,1248.2,0.14275745]
[1672911983501,10.33299493,1248.3,1248.2,0.14275745]
[1672911983710,59.60099282,1248.3,1248.2,0.14275745]
[1672911983981,63.69782473,1248.3,1248.2,0.14275745]
[1672911986242,63.69782473,1248.3,1248.2,7.45e-06]
[1672911986452,71.70871473,1248.3,1248.2,7.45e-06]
[1672911987138,71.70871473,1248.3,1248.1,0.18548089]
[1672911987139,50.52992691,1248.3,1248.1,0.18348834]
[1672911987365,2.7483,1248.2,1248.1,0.18348834]
[1672911987501,30.36182652,1248.2,1248.1,0.18348834]
[1672911987846,50.4248661,1248.2,1248.1,0.18348834]
[1672911988233,53.9214451,1248.2,1248.1,0.18348834]
[1672911989254,50.34254768,1248.2,1248.1,0.18348834]
[1672911989399,49.74124768,1248.2,1248.1,0.18348834]
[1672911989604,53.91680123,1248.2,1248.1,0.18348834]
[1672911990553,53.31798401,1248.2,1248.1,0.18348834]
[1672911990765,47.90436591,1248.2,1248.1,0.18348834]
[1672911990977,31.05554113,1248.2,1248.1,0.18348834]
[1672911991230,34.03655505,1248.2,1248.1,2.10048834]
[1672911991416,42.04806079,1248.2,1248.1,0.18348834]
[1672911991640,50.05959079,1248.2,1248.1,0.18348834]
[1672911991852,47.07860113,1248.2,1248.1,0.18348834]
[1672911992563,26.02534691,1248.2,1248.1,0.18348834]
[1672911992922,26.02534691,1248.2,1248.1,2.10048834]
[1672911993226,26.02534691,1248.2,1248.1,14.79122722]
[1672911993227,24.833062,1248.2,1248.1,14.79122722]
[1672911993438,4.83602242,1248.2,1248.1,14.84669695]
[1672911993657,7.15520834,1248.2,1248.1,14.84669695]
[1672911993803,7.22120834,1248.2,1248.1,14.84669695]
[1672911994012,4.83602242,1248.2,1248.1,14.84669695]
[1672911994281,7.15520834,1248.2,1248.1,14.84669695]
[1672911994448,7.22120834,1248.2,1248.1,14.63583683]
[1672911994660,5.43215747,1248.2,1248.1,0.23895807]
[1672911994854,32.44808325,1248.2,1248.1,0.18348834]
[1672911995070,8.41349325,1248.2,1248.1,0.18348834]
[1672911995280,5.43215747,1248.2,1248.1,2.10048834]
[1672911995698,8.41349325,1248.2,1248.1,2.10048834]
[1672911997067,8.41349325,1248.2,1248.1,10.11265834]
[1672911997277,8.41349325,1248.2,1248.1,2.15595807]
[1672911997491,8.41349325,1248.2,1248.1,2.10048834]
[1672911998987,8.41349325,1248.2,1248.1,17.52199495]
[1672911999204,8.41349325,1248.2,1248.1,33.60180468]
[1672911999419,8.41349325,1248.2,1248.1,25.58963468]
[1672911999744,8.41349325,1248.2,1248.1,9.56529468]
[1672912000531,6.02830733,1248.2,1248.1,9.56529468]
[1672912000951,8.41578799,1248.2,1248.1,9.56529468]
[1672912001638,7.22499678,1248.2,1248.1,33.60180468]
[1672912002616,9.0158668,1248.2,1248.1,33.60180468]
[1672912003253,6.62838614,1248.2,1248.1,33.60180468]
[1672912003459,9.0158668,1248.2,1248.1,33.60180468]
[1672912004200,6.62838614,1248.2,1248.1,33.60180468]
[1672912007201,6.62838614,1248.2,1248.1,25.58963468]
[1672912008204,6.62838614,1248.2,1248.1,33.60180468]
[1672912008715,9.0158668,1248.2,1248.1,25.58963468]
[1672912009307,6.62838614,1248.2,1248.1,25.58963468]
[1672912009557,9.0158668,1248.2,1248.1,25.58963468]
[1672912009768,9.0158668,1248.2,1248.1,17.57746468]
[1672912010084,9.0158668,1248.2,1248.1,9.56529468]
[1672912010657,7.22515981,1248.2,1248.1,9.56529468]
[1672912011657,7.22515981,1248.2,1248.1,9.56261932]
[1672912012582,10.20649559,1248.2,1248.1,9.56261932]
[1672912013021,10.20649559,1248.2,1248.1,4.22543222]
[1672912013242,10.20649559,1248.2,1248.1,4.16996249]
[1672912013384,7.22515981,1248.2,1248.1,4.16996249]
[1672912013595,7.22515981,1248.2,1248.1,12.18213249]
[1672912013596,9.01655642,1248.2,1248.1,12.18213249]
[1672912013857,9.01655642,1248.2,1248.1,20.24977222]
[1672912014018,9.01655642,1248.2,1248.1,28.22393593]
[1672912017257,6.62907576,1248.2,1248.1,28.22393593]
[1672912017607,6.62907576,1248.2,1248.1,20.21176593]
[1672912018224,9.01655642,1248.2,1248.1,20.21176593]
[1672912018440,6.62907576,1248.2,1248.1,20.21176593]
[1672912018681,9.01655642,1248.2,1248.1,20.21176593]
[1672912020371,9.01655642,1248.2,1248.1,12.23760222]
[1672912021072,7.22515981,1248.2,1248.1,12.23760222]
[1672912021282,10.20649559,1248.2,1248.1,4.22543222]
[1672912021517,10.20649559,1248.2,1248.1,4.16996249]
[1672912028411,7.81901493,1248.2,1248.1,4.16996249]
[1672912032229,8.41441548,1248.2,1248.1,4.16996249]
[1672912032838,16.42594548,1248.2,1248.1,4.16996249]
[1672912033038,24.43747548,1248.2,1248.1,4.16996249]
[1672912033722,32.44900548,1248.2,1248.1,0.17742198]
[1672912033887,24.43747548,1248.2,1248.1,0.17742198]
[1672912034353,25.0362927,1248.2,1248.1,0.17742198]
[1672912034581,33.0478227,1248.2,1248.1,0.17742198]
[1672912034716,37.14676845,1248.2,1248.1,0.17742198]
[1672912035385,32.9712149,1248.2,1248.1,0.17742198]
[1672912035603,37.91050328,1248.2,1248.1,0.17742198]
[1672912035807,38.14050328,1248.2,1248.1,0.17742198]
[1672912035995,41.14050328,1248.2,1248.1,0.17742198]
[1672912036568,1.92662929,1248.0,1247.9,0.21239995]
[1672912036783,5.5139111,1248.0,1247.9,0.21239995]
[1672912036927,1.99262929,1248.0,1247.9,0.21239995]
[1672912037132,5.5139111,1248.0,1247.9,0.21239995]
[1672912037416,5.5799111,1248.0,1247.9,0.21239995]
[1672912037586,1.99262929,1248.0,1247.9,0.21239995]
[1672912037809,0.00962929,1248.0,1247.9,0.21239995]
[1672912038009,0.00962929,1248.0,1247.9,6.11854946]
[1672912038181,0.00962929,1248.0,1247.9,4.25701919]
[1672912038396,2.9976456,1248.0,1247.9,4.20154946]
[1672912041880,5.38699927,1248.0,1247.9,4.20154946]
[1672912042068,3.0636456,1248.0,1247.9,4.20154946]
[1672912042306,2.9976456,1248.0,1247.9,4.20154946]
[1672912042914,2.9996456,1248.0,1247.9,4.20154946]
[1672912043139,2.9976456,1248.0,1247.9,4.20154946]
[1672912043560,2.99519921,1248.0,1247.9,4.20154946]
[1672912043926,11.00801921,1248.0,1247.9,4.20154946]
[1672912044140,27.7013711,1248.0,1247.9,0.21239995]
[1672912044285,28.3027711,1248.0,1247.9,0.21239995]
[1672912045056,20.2899511,1248.0,1247.9,0.21239995]
[1672912045607,12.2771311,1248.0,1247.9,0.21239995]
[1672912045912,24.94548929,1248.0,1247.9,0.21239995]
[1672912046128,44.94252887,1248.0,1247.9,0.21239995]
[1672912046341,52.62789255,1248.0,1247.9,0.21239995]
[1672912046648,49.12789255,1248.0,1247.9,0.21239995]
[1672912047959,54.12789255,1248.0,1247.9,0.21239995]
[1672912048395,45.50814995,1248.0,1247.9,0.21239995]
[1672912049490,48.60422206,1248.0,1247.8,0.00055282]
[1672912049806,48.60422206,1248.0,1247.7,0.33518482]
[1672912049807,3.5,1247.8,1247.7,0.33518482]
[1672912050014,36.53371568,1247.8,1247.7,0.33518482]
[1672912050225,24.43386345,1247.8,1247.7,0.33518482]
[1672912050376,24.0008159,1247.8,1247.7,0.33518482]
[1672912050852,32.0149159,1247.8,1247.7,0.33518482]
[1672912051003,24.0008159,1247.8,1247.7,0.33518482]
[1672912051215,32.0149159,1247.8,1247.7,0.33518482]
[1672912051483,15.9867159,1247.8,1247.7,0.33518482]
[1672912051656,12.4116,1247.8,1247.7,0.33518482]
[1672912051851,28.4398,1247.8,1247.7,0.33518482]
[1672912052063,32.0149159,1247.8,1247.7,0.33518482]
[1672912052940,37.0149159,1247.8,1247.7,0.33518482]
[1672912053194,41.00406541,1247.8,1247.7,0.33518482]
[1672912053334,37.0149159,1247.8,1247.7,0.33518482]
[1672912053760,33.4398,1247.8,1247.7,0.33518482]
[1672912054298,37.0149159,1247.8,1247.7,0.33518482]
[1672912056649,38.59495917,1247.8,1247.7,0.33518482]
[1672912057442,42.58410868,1247.8,1247.7,0.33518482]
[1672912058956,11.99917297,1247.8,1247.7,0.33518482]
[1672912059522,17.03932831,1247.8,1247.7,0.33518482]
[1672912059742,13.82375589,1247.8,1247.7,0.33518482]
[1672912060110,31.04147297,1247.8,1247.7,0.33518482]
[1672912060528,28.66228793,1247.8,1247.7,0.33518482]
[1672912060697,29.26378793,1247.8,1247.7,0.33518482]
[1672912061314,29.49378793,1247.8,1247.7,0.33518482]
[1672912061736,33.48293744,1247.8,1247.7,0.33518482]
[1672912061946,42.49810868,1247.8,1247.6,0.23408316]
[1672912062192,9.22209518,1247.7,1247.6,0.23408316]
[1672912062538,30.80875784,1247.7,1247.6,0.23408316]
[1672912062949,53.77941304,1247.7,1247.6,0.23408316]
[1672912063099,58.77941304,1247.7,1247.6,0.23408316]
[1672912064825,55.80579742,1247.7,1247.6,0.23408316]
[1672912065050,29.35875533,1247.7,1247.6,0.23408316]
[1672912065220,39.15766588,1247.7,1247.6,0.23408316]
[1672912065414,32.37349533,1247.7,1247.6,0.23408316]
[1672912065628,48.99753769,1247.7,1247.6,0.23408316]
[1672912066525,24.95331769,1247.7,1247.6,0.23408316]
[1672912066677,24.35926847,1247.7,1247.6,0.23408316]
[1672912067375,27.33254658,1247.7,1247.6,0.23408316]
[1672912067707,35.34728658,1247.7,1247.6,0.23408316]
[1672912067992,27.33254658,1247.7,1247.6,0.23408316]
[1672912068177,22.44226847,1247.7,1247.6,2.15108316]
[1672912068367,21.84800603,1247.7,1247.6,10.16646316]
[1672912068587,21.84800603,1247.7,1247.6,10.22193289]
[1672912068794,1.85096645,1247.7,1247.6,10.22193289]
[1672912069018,1.78496645,1247.7,1247.6,18.23731289]
[1672912069424,1.78496645,1247.7,1247.6,0.28955289]
[1672912069614,1.78496645,1247.7,1247.6,0.23408316]
[1672912070283,4.16419534,1247.7,1247.6,0.23408316]
[1672912070471,2.37922889,1247.7,1247.6,0.23408316]
[1672912071678,5.352507,1247.7,1247.6,0.23408316]
[1672912071834,5.418507,1247.7,1247.6,0.23408316]
[1672912072593,13.433247,1247.7,1247.6,0.23408316]
[1672912072770,21.447987,1247.7,1247.6,0.23408316]
[1672912073648,3.03927811,1247.7,1247.6,0.23408316]
[1672912073808,5.35754818,1247.7,1247.6,0.23408316]
[1672912074024,5.42354818,1247.7,1247.6,0.23408316]
[1672912074874,5.42354818,1247.7,1247.6,4.22323267]
[1672912075085,4.2385424,1247.7,1247.6,28.26937267]
[1672912075320,4.1725424,1247.7,1247.6,22.36387796]
[1672912075532,4.1725424,1247.7,1247.6,14.34849796]
[1672912075762,2.38427007,1247.7,1247.6,22.36387796]
[1672912076178,5.35754818,1247.7,1247.6,20.3094624]
[1672912076343,4.23906601,1247.7,1247.6,12.2940824]
[1672912076713,4.17306826,1247.7,1247.6,12.2940824]
[1672912077444,2.38427007,1247.7,1247.6,4.2787024]
[1672912077672,5.35754818,1247.7,1247.6,4.22323267]
[1672912077875,5.42354818,1247.7,1247.6,12.23861267]
[1672912078191,5.42354818,1247.7,1247.6,12.2940824]
[1672912078192,2.45027007,1247.7,1247.6,12.2940824]
[1672912078334,1.78940527,1247.7,1247.6,31.18078696]
[1672912078546,5.81971861,1247.8,1247.6,31.18078696]
[1672912078773,5.81971861,1247.8,1247.7,50.03336951]
[1672912079016,5.81971861,1247.8,1247.7,56.25611986]
[1672912079393,2.97327811,1247.9,1247.7,56.25611986]
[1672912079608,23.60193663,1248.2,1247.8,10.48914951]
[1672912079835,20.09282073,1248.2,1248.1,8.0]
[1672912080015,0.09578115,1248.2,1248.1,12.04461924]
[1672912080224,0.02978115,1248.2,1248.1,15.45036016]
[1672912081228,3.60489705,1248.2,1248.1,0.05546973]
[1672912081398,3.60489705,1248.2,1248.0,22.0]
[1672912081399,3.60489705,1248.2,1248.0,8.05546973]
[1672912081618,11.61642705,1248.2,1248.0,0.05546973]
[1672912081968,3.67089705,1248.2,1247.9,10.05546973]
[1672912082123,3.60489705,1248.2,1247.9,20.12631622]
[1672912082499,7.0751159,1248.1,1247.9,10.05546973]
[1672912082647,7.1411159,1248.1,1247.9,10.05546973]
[1672912084446,7.1411159,1248.1,1247.9,38.08484924]
[1672912084447,3.6411159,1248.1,1247.9,38.08484924]
[1672912084670,3.5751159,1248.1,1247.9,27.46781316]
[1672912084848,11.5874959,1248.1,1247.9,19.45450316]
[1672912085059,3.6411159,1248.1,1247.9,19.45450316]
[1672912085374,27.6116659,1248.1,1247.9,0.05546973]
[1672912085593,3.5751159,1248.0,1247.8,8.05546973]
[1672912085798,11.5881659,1248.0,1247.8,12.04461924]
[1672912086014,8.07905,1248.0,1247.8,12.04461924]
[1672912086636,2.98405612,1247.9,1247.8,12.04461924]
[1672912087511,5.37127603,1247.9,1247.8,12.04461924]
[1672912087727,5.43727603,1247.9,1247.8,12.04461924]
[1672912087944,5.43727603,1247.9,1247.8,15.45054516]
[1672912088850,4.24344623,1247.9,1247.8,39.49284516]
[1672912089076,1.79022632,1247.9,1247.8,39.49284516]
[1672912090523,1.79022632,1247.9,1247.8,31.47874516]
[1672912091212,1.79022632,1247.9,1247.8,23.46464516]
[1672912091603,4.24233894,1248.0,1247.8,23.46464516]
[1672912091891,4.17633894,1248.0,1247.9,3.98914951]
[1672912092102,4.17633894,1248.0,1247.9,7.93843403]
[1672912092370,4.17633894,1248.0,1247.9,7.99390376]
[1672912093009,21.39611398,1248.0,1247.9,0.05546973]
[1672912093322,5.43453133,1248.0,1247.8,8.05546973]
[1672912093634,1.78881287,1247.9,1247.8,12.04461924]
[1672912094368,1.78881287,1247.9,1247.8,15.45051416]
[1672912094958,1.79081287,1247.9,1247.8,15.44851416]
[1672912095172,1.78881287,1247.9,1247.8,15.45051416]
[1672912096140,1.78881287,1247.9,1247.8,8.05546973]
[1672912096329,4.17387293,1247.9,1247.8,8.05546973]
[1672912096753,4.17387293,1247.9,1247.8,20.05871924]
[1672912096754,1.78881287,1247.9,1247.8,20.05871924]
[1672912096976,1.78881287,1247.9,1247.8,12.04461924]
[1672912097194,4.17387293,1247.9,1247.8,12.04461924]
[1672912097730,27.0218278,1247.9,1247.8,8.05546973]
[1672912097899,27.0878278,1247.9,1247.8,8.05546973]
[1672912098978,19.0743678,1247.9,1247.8,8.05546973]
[1672912099519,27.0878278,1247.9,1247.8,8.05546973]
[1672912099713,19.0743678,1247.9,1247.8,8.05546973]
[1672912099925,27.0878278,1247.9,1247.8,8.05546973]
[1672912100779,19.0743678,1247.9,1247.8,8.05546973]
[1672912100951,27.0878278,1247.9,1247.8,8.05546973]
[1672912101160,19.0743678,1247.9,1247.8,8.05546973]
[1672912101403,27.6814959,1247.9,1247.8,0.05546973]
[1672912101626,27.6814959,1247.9,1247.6,30.57955289]
[1672912101791,27.6814959,1247.9,1247.6,0.28955289]
[1672912101792,4.17417593,1247.7,1247.6,0.28955289]
[1672912102002,2.38524339,1247.7,1247.6,0.23408316]
[1672912102220,2.38524339,1247.7,1247.6,0.23172706]
[1672912103578,5.36679763,1247.7,1247.6,0.23172706]
[1672912103806,10.46598339,1247.7,1247.6,0.23172706]
[1672912104334,13.44753763,1247.7,1247.6,0.23172706]
[1672912105057,5.43279763,1247.7,1247.6,0.23172706]
[1672912105695,4.24113025,1247.7,1247.6,0.23172706]
[1672912105991,2.38524339,1247.7,1247.6,0.23172706]
[1672912106845,4.17534571,1247.7,1247.6,0.23172706]
[1672912107716,2.38524339,1247.7,1247.6,0.23172706]
[1672912109348,5.36679763,1247.7,1247.6,0.23172706]
[1672912109617,5.43279763,1247.7,1247.6,0.23172706]
[1672912110444,13.44753763,1247.7,1247.6,0.23172706]
[1672912110991,5.43279763,1247.7,1247.6,0.23172706]
[1672912113657,3.04755424,1247.7,1247.6,0.23172706]
[1672912113881,2.98155424,1247.7,1247.6,0.23172706]
[1672912115862,10.99629424,1247.7,1247.6,0.23172706]
[1672912116070,11.06229424,1247.7,1247.6,0.23172706]
[1672912116498,3.04755424,1247.7,1247.6,0.23172706]
[1672912116773,2.98155424,1247.7,1247.6,0.23172706]
[1672912117393,10.99629424,1247.7,1247.6,0.23172706]
[1672912117560,11.06229424,1247.7,1247.6,0.23172706]
[1672912120274,3.04755424,1247.7,1247.6,0.23172706]
[1672912120551,2.98155424,1247.7,1247.6,0.23172706]
[1672912120904,10.99629424,1247.7,1247.6,0.23172706]
[1672912121114,11.06721052,1247.7,1247.6,0.23172706]
[1672912122435,11.06721052,1247.7,1247.5,0.05]
[1672912122436,1.97,1247.6,1247.5,0.05]
[1672912122647,31.27399303,1247.6,1247.4,0.056]
[1672912122797,32.06668,1247.4,1247.3,0.21359419]
[1672912123007,32.06668,1247.4,1246.8,0.0832818]
[1672912123008,16.70129419,1247.3,1246.8,0.0832818]
[1672912123228,16.70129419,1247.3,1246.5,1.0539806]
[1672912123229,26.77923845,1246.9,1246.5,1.0539806]
[1672912123434,7.75896806,1246.6,1246.2,0.06]
[1672912123712,1.79036829,1246.3,1246.2,22.0]
[1672912123900,9.65455999,1246.4,1246.2,1.808]
[1672912124069,0.066,1246.4,1246.2,1.654]
[1672912124280,8.02324,1246.4,1246.1,3.5]
[1672912124513,0.066,1246.4,1246.3,8.0]
[1672912124745,33.7639226,1246.8,1246.4,3.566]
[1672912124746,19.877,1246.8,1246.4,3.566]
[1672912124910,0.066,1246.8,1246.5,30.02246]
[1672912125129,16.96832975,1247.0,1246.5,38.11092]
[1672912125375,0.6019,1246.9,1246.5,30.56701925]
[1672912125601,0.6019,1246.9,1246.5,43.54719118]
[1672912125915,0.6019,1246.9,1246.6,3.5]
[1672912126086,0.6019,1246.9,1246.6,19.54321]
[1672912126277,20.66493958,1247.0,1246.7,30.04163]
[1672912126489,0.6679,1247.0,1246.7,30.10763]
[1672912126721,16.64114,1247.0,1246.7,18.27675893]
[1672912126905,8.68729,1247.0,1246.7,14.066]
[1672912127119,8.68729,1247.0,1246.7,0.066]
[1672912127380,8.68729,1247.0,1246.6,0.47855925]
[1672912127381,22.07886975,1247.0,1246.5,0.066]
[1672912127698,8.02083,1246.8,1246.4,0.066]
[1672912127867,20.06303958,1246.8,1246.5,14.0]
[1672912128077,20.06303958,1246.8,1246.5,3.87722]
[1672912128305,36.10423958,1246.8,1246.4,0.132]
[1672912128517,8.85346,1246.7,1246.4,0.066]
[1672912128709,16.94092,1246.7,1246.4,0.066]
[1672912128909,0.668,1246.7,1246.4,0.066]
[1672912129114,16.64439,1246.7,1246.4,0.066]
[1672912129330,0.668,1246.7,1246.4,0.066]
[1672912129540,0.602,1246.7,1246.4,0.066]
[1672912129803,0.602,1246.7,1246.4,3.566]
[1672912130019,0.602,1246.7,1246.4,2.631568]
[1672912130329,0.602,1246.7,1246.4,0.066]
[1672912131373,8.62319,1246.7,1246.4,0.066]
[1672912131593,0.668,1246.7,1246.4,0.066]
[1672912131918,0.602,1246.7,1246.4,0.066]
[1672912132128,0.602,1246.7,1246.4,8.08892]
[1672912132339,0.602,1246.7,1246.4,11.975107]
[1672912132829,0.602,1246.7,1246.4,19.998207]
[1672912133446,0.602,1246.7,1246.4,11.975107]
[1672912133983,24.66573,1246.7,1246.4,3.952187]
[1672912134193,8.68917,1246.7,1246.4,35.066]
[1672912134445,1.78940659,1246.6,1246.4,43.15501]
[1672912134663,1.78940659,1246.6,1246.5,42.05652951]
[1672912134806,1.78940659,1246.6,1246.5,42.12252951]
[1672912136314,1.78940659,1246.6,1246.5,26.07760951]
[1672912136918,1.78940659,1246.6,1246.5,50.09669322]
[1672912137587,1.78940659,1246.6,1246.5,58.09669322]
[1672912137804,0.066,1246.8,1246.6,5.28940659]
[1672912137964,0.6019,1247.0,1246.7,42.05265951]
[1672912138333,12.48345309,1247.1,1246.9,16.03976]
[1672912138334,21.44269267,1247.1,1246.9,16.03976]
[1672912138544,21.44269267,1247.1,1247.0,3.98914951]
[1672912138760,21.44269267,1247.1,1247.0,28.04686951]
[1672912139087,1.44565309,1247.1,1247.0,28.11286951]
[1672912139242,1.37965309,1247.1,1247.0,28.11286951]
[1672912139459,1.37965309,1247.1,1247.0,33.92614446]
[1672912140061,1.37965309,1247.1,1247.0,37.40470371]
[1672912140487,1.37965309,1247.1,1247.0,29.38546371]
[1672912141367,1.37965309,1247.1,1247.0,37.40470371]
[1672912144751,1.37965309,1247.1,1247.0,72.40470371]
[1672912145778,0.68204897,1247.5,1247.1,3.5]
[1672912145994,0.68204897,1247.5,1247.2,17.98914951]
[1672912145995,24.05236,1247.3,1247.2,17.98914951]
[1672912146178,16.10062,1247.3,1247.2,18.05514951]
[1672912146402,0.066,1247.3,1247.2,18.05514951]
[1672912146745,0.066,1247.4,1247.2,26.07310951]
[1672912146934,3.61604897,1247.5,1247.2,34.09106951]
[1672912147154,3.61804897,1247.5,1247.2,42.10702951]
[1672912147482,3.61604897,1247.5,1247.2,42.10902951]
[1672912147669,3.61604897,1247.5,1247.2,34.09106951]
[1672912147885,0.61604897,1247.5,1247.2,34.09106951]
[1672912148273,0.61604897,1247.5,1247.2,42.10902951]
[1672912148490,28.16442897,1247.5,1247.2,14.066]
[1672912148721,28.70898822,1247.5,1247.2,14.066]
[1672912149058,20.21410897,1247.5,1247.2,14.066]
[1672912149500,28.23042897,1247.5,1247.2,14.066]
[1672912150107,0.68204897,1247.5,1247.2,26.07294951]
[1672912150257,0.68204897,1247.5,1247.2,34.09090951]
[1672912150258,0.61604897,1247.5,1247.2,34.09090951]
[1672912150638,0.61604897,1247.5,1247.2,42.10886951]
[1672912150997,0.61604897,1247.5,1247.2,34.09090951]
[1672912151213,8.63216897,1247.5,1247.2,26.07294951]
[1672912151443,16.71428897,1247.5,1247.2,18.05514951]
[1672912152061,34.5218529,1247.5,1247.2,0.066]
[1672912152274,37.3879993,1247.5,1247.0,35.066]
[1672912152481,37.3879993,1247.5,1247.0,39.05514951]
[1672912152482,24.05232,1247.3,1247.0,39.05514951]
[1672912152678,24.11832,1247.3,1247.0,39.05514951]
[1672912152891,24.72002,1247.3,1247.0,39.05514951]
[1672912153129,24.72002,1247.3,1247.0,35.066]
[1672912153526,44.71705958,1247.3,1247.0,35.066]
[1672912153907,3.5,1247.2,1247.0,35.066]
[1672912154208,24.0558,1247.1,1247.0,0.066]
[1672912154421,24.1218,1247.1,1246.8,10.066]
[1672912154779,8.0846,1247.1,1246.8,10.066]
[1672912155360,16.1032,1247.1,1246.8,17.03779324]
[1672912155522,16.1032,1247.1,1246.9,5.54277284]
[1672912155758,16.1032,1247.1,1246.9,5.60877284]
[1672912156161,24.1218,1247.1,1246.9,5.60877284]
[1672912156376,24.1718,1247.1,1246.9,0.066]
[1672912156663,16.1032,1247.1,1246.8,10.066]
[1672912156926,0.066,1247.1,1246.8,30.09620951]
[1672912157147,8.01807,1247.2,1246.8,38.11673951]
[1672912157330,8.08407,1247.2,1246.8,38.11673951]
[1672912158320,17.87746393,1247.2,1246.9,14.0]
[1672912158638,17.87746393,1247.2,1246.9,14.066]
[1672912158639,16.10214,1247.2,1246.9,14.066]
[1672912158849,17.87746393,1247.2,1246.9,14.066]
[1672912159164,9.85939393,1247.2,1246.9,22.08586]
[1672912159351,8.08407,1247.2,1246.9,22.08586]
[1672912159541,8.08407,1247.2,1246.9,14.066]
[1672912159748,1.84132393,1247.2,1246.9,34.09484951]
[1672912159959,1.77532393,1247.2,1246.9,34.09484951]
[1672912160578,35.91035066,1247.3,1246.9,34.09484951]
[1672912161028,43.92822066,1247.3,1246.9,34.09484951]
[1672912161254,51.94609066,1247.3,1246.9,26.07496951]
[1672912161483,35.91035066,1247.3,1246.9,34.09484951]
[1672912161634,1.77532393,1247.2,1246.9,34.09484951]
[1672912161846,4.16291108,1247.2,1246.9,34.09484951]
[1672912162322,12.18088108,1247.2,1246.9,26.07496951]
[1672912162533,12.24688108,1247.2,1246.9,26.07496951]
[1672912162916,9.85929393,1247.2,1246.9,26.07496951]
[1672912163139,1.84132393,1247.2,1246.9,34.09484951]
[1672912163352,1.77532393,1247.2,1246.9,42.11472951]
[1672912163540,1.77532393,1247.2,1246.9,34.09484951]
[1672912163962,4.16291108,1247.2,1246.9,34.09484951]
[1672912164197,4.16291108,1247.2,1246.9,26.07496951]
[1672912164404,12.18096108,1247.2,1246.9,26.07496951]
[1672912164689,28.28297108,1247.2,1246.9,18.05514951]
[1672912165138,28.28297108,1247.2,1246.9,39.05514951]
[1672912165334,28.28297108,1247.2,1246.9,53.05514951]
[1672912165798,4.22891108,1247.2,1246.9,61.07497951]
[1672912166010,4.16291108,1247.2,1246.9,61.07497951]
[1672912166374,1.77532393,1247.2,1247.0,3.98914951]
[1672912166592,1.77532393,1247.2,1247.1,16.0372]
[1672912166946,1.77532393,1247.2,1247.1,16.1032]
[1672912167160,24.82765066,1247.3,1247.1,16.1032]
[1672912167522,21.83836351,1247.3,1247.1,20.09234951]
[1672912168149,21.83836351,1247.3,1247.1,12.07374951]
[1672912168391,24.22595066,1247.3,1247.1,12.07374951]
[1672912169394,21.83836351,1247.3,1247.1,28.10882535]
[1672912169610,21.83836351,1247.3,1247.1,28.11082535]
[1672912169967,1.84132393,1247.3,1247.1,28.11082535]
[1672912170227,4.16291108,1247.3,1247.1,28.11082535]
[1672912170919,1.77532393,1247.3,1247.1,28.11082535]
[1672912171130,24.71271108,1247.4,1247.2,3.98914951]
[1672912171501,1.77532393,1247.3,1247.2,28.04269951]
[1672912171690,14.98611108,1247.4,1247.2,28.10869535]
[1672912172023,1.77532393,1247.3,1247.2,28.10869535]
[1672912173596,2.45358715,1247.4,1247.2,28.10869535]
[1672912173597,4.22891108,1247.4,1247.2,28.10869535]
[1672912173828,4.16291108,1247.4,1247.3,3.98914951]
[1672912173982,5.37172975,1247.4,1247.3,20.02376951]
[1672912174187,5.43772975,1247.4,1247.3,28.10707535]
[1672912174417,4.24497735,1247.4,1247.3,28.10707535]
[1672912174755,4.17897735,1247.4,1247.3,28.10707535]
[1672912175851,2.38758715,1247.4,1247.3,28.10707535]
[1672912176057,4.17942835,1247.4,1247.3,28.10707535]
[1672912176897,4.17942835,1247.4,1247.3,45.71954589]
[1672912177112,1.7918412,1247.4,1247.3,53.71954589]
[1672912179060,5.37172975,1247.4,1247.3,0.06599584]
[1672912179272,5.37172975,1247.4,1247.2,14.0]
[1672912179273,5.43772975,1247.4,1247.2,14.0]
[1672912179490,1.79166866,1247.3,1247.2,26.07309535]
[1672912179857,1.79166866,1247.3,1247.2,34.09105535]
[1672912180209,1.79166866,1247.3,1247.2,42.06521906]
[1672912181048,1.79166866,1247.3,1247.2,34.09105535]
[1672912181684,1.79166866,1247.3,1247.2,18.05514535]
[1672912182030,4.17925581,1247.3,1247.2,18.05514535]
[1672912183017,4.17925581,1247.3,1247.2,26.07310535]
[1672912183221,4.17925581,1247.3,1247.2,34.09106535]
[1672912183856,4.17925581,1247.3,1247.2,42.10902535]
[1672912184899,1.79166866,1247.3,1247.2,42.10902535]
[1672912185168,1.79166866,1247.3,1247.2,48.48445115]
[1672912185322,4.24525581,1247.4,1247.2,51.48445115]